Cogmind - Beta 16.1 @@@ ROGUE MODE // 2026.03.20 @ 17:09:12 Player: the Result: Destroyed by G-47 Trooper with Particle Gun Performance ------------- Evolutions (2) 1000 Regions Visited (3) 600 Robots Destroyed (43) 215 Value Destroyed (1264) 1264 Prototype IDs (14) 280 Alien Tech Used (0) 0 Bonus (0) 0 TOTAL SCORE: 3359 Bonus ------- None Cogmind --------- Core Integrity 0/550 Matter 52/300 Energy 16/100 System Corruption 0% Temperature Critical (712) Movement Core (500) Ox9 Location -8/Materials Parts ------- > --- POWER (2) -------- (None) > --- PROPULSION (3) --- (None) > --- UTILITY (3) ------ Large Storage Unit Hacking Suite > --- WEAPON (3) ------- Subdweller Laser Advanced Beam Cannon > --- INVENTORY (15) --- Seismic Detector Power Bank Mining Laser Peak State ------------ > --- POWER ------------ Light Nuclear Core > --- PROPULSION ------- Light Treads > --- UTILITY ---------- Disposable Heat Sink Large Storage Unit Hacking Suite > --- WEAPON ----------- Advanced Beam Cannon Advanced Beam Cannon Advanced Beam Cannon > --- INVENTORY -------- Seismic Detector Reactive Plating Power Bank Subdweller Laser Autogun Autogun Autogun Autogun Subdweller Machine Gun Barrage Gun Grenade Launcher Mining Laser [Rating: 22] Favorites ----------- Power Ion Engine Engine Ion Engine Power Core Light Nuclear Core Propulsion Light Treads Treads Light Treads Leg Improved Aluminum Leg Wheel Subdweller Monowheel Utility Large Storage Unit Device Seismic Detector Storage Large Storage Unit Hackware Hacking Suite Protection Reactive Plating Weapon Particle Cannon Energy Gun Medium Laser Energy Cannon Particle Cannon Ballistic Gun Autogun Launcher Grenade Launcher Special Weapon Mining Laser Build | -11 -10 -10 -8 ------- Run | Yrd Mat Sub Mat Slots Evolved 4 | . . . 4 Power 1 | . . . 1 Propulsion 1 | . . . 1 Utility 1 | . . . 1 Weapon 1 | . . . 1 Parts Attached 36 | 7 8 9 12 Power 4 | 1 . 1 2 Engine 3 | 1 . 1 1 Core 1 | . . . 1 Reactor . | . . . . Propulsion 6 | 2 . 3 1 Treads 4 | 2 . 2 . Leg 1 | . . . 1 Wheel 1 | . . 1 . Hover . | . . . . Flight . | . . . . Utility 7 | 2 1 2 2 Device 3 | 1 . 2 . Storage 2 | 1 1 . . Processor . | . . . . Hackware 1 | . . . 1 Protection 1 | . . . 1 Artifact . | . . . . Weapon 19 | 2 7 3 7 Energy Gun 3 | 2 . . 1 Energy Cannon 8 | . 5 3 . Ballistic Gun 6 | . . . 6 Ballistic Cannon . | . . . . Launcher 1 | . 1 . . Special Weapon 1 | . 1 . . Impact Weapon . | . . . . Slashing Weapon . | . . . . Piercing Weapon . | . . . . Special Melee Weapon . | . . . . Unidentified Prototypes 1 | . 1 . . Parts Lost 19 | . . 6 13 Power 3 | . . 1 2 Propulsion 5 | . . 3 2 Utility 2 | . . 1 1 Weapon 9 | . . 1 8 Highest Loss Streak 13 | . . 2 13 To Critical Strikes . | . . . . Average Backups 11 | 2 9 14 10 Power 1 | 1 1 . . Propulsion . | . . . . Utility 2 | . 1 2 2 Weapon 7 | 1 5 10 8 Tool/Special . | . . . . Unused Backups 9 | 1 6 1 1 Power 3 | . 3 . . Propulsion . | . . . . Utility 3 | . 1 1 1 Weapon 3 | 1 2 . . Tool/Special . | . . . . Average Slot Usage (%) 96 | . 99 98 63 Engine 13 | . 14 13 1 Treads 25 | . 27 25 6 Device 13 | . 14 13 6 Storage 13 | . 14 14 9 Energy Cannon 26 | . 25 27 19 Peak Build Rating 22 | 7 12 15 22 Average Rating 11 | 5 10 11 18 On Entrance 7 | . 7 12 12 Avg Prop Armor Cover (%) 12 | . . 12 . Naked Turns . | . . . . Heaviest Build 39 | 15 34 38 39 Greatest Support 40 | 40 40 40 20 Greatest Overweight (x) 2 | . . 1 2 Average Overweight (x) . | . . . 1 Largest Inventory Capacity 15 | 8 15 15 15 Average Capacity 14 | 7 13 15 15 Most Carried 15 | 5 15 15 14 Average Carried 11 | 2 9 14 10 Final Capacity 15 | 8 15 15 15 Final Carried 15 | 5 15 14 3 Class Distribution -------------------- 95% | Mutant 4% | Gunner Dominant Class ---------------- Mutant | -10/Materials Mutant | -10/Subcaves Gunner | -8/Materials Resources | -11 -10 -10 -8 ----------- Run | Yrd Mat Sub Mat Matter Collected 695 | 230 220 205 40 Remotely . | . . . . Salvage Created 1548 | 150 498 523 377 Parts 93 | 12 37 27 17 Haulers Intercepted 2 | . 2 . . Recyclers Shooed . | . . . . Parts Field Recycled . | . . . . Retrieved Matter . | . . . . Parts Self-Destructed 19 | . . 19 . Prevented . | . . . . Parts Restored . | . . . . Kills | -11 -10 -10 -8 ------- Run | Yrd Mat Sub Mat Combat Hostiles Destroyed 29 | . 9 12 8 Guns 3 | . . . 3 Cannons 14 | . 3 7 4 AOE 9 | . 6 2 1 Classes Destroyed 13 | 2 7 2 2 Worker 2 | . 1 . 1 Builder 1 | . 1 . . Tunneler 4 | 4 . . . Hauler 2 | . 2 . . Recycler 2 | 1 1 . . Operator 1 | . 1 . . Watcher 2 | . 2 . . Swarmer 5 | . 3 2 . Grunt 12 | . 6 . 6 Duelist 1 | . . . 1 Protector 1 | . . . 1 Sentry 1 | . . 1 . Subdweller 9 | . . 9 . Best Kill Streak 5 | 3 5 3 4 Combat Bots Only 4 | . 4 3 4 Max Kills in Single Turn 3 | 1 3 2 1 Gunslinging . | . . . . Exploded 3 | . 3 2 1 Melee . | . . . . Uniques/NPCs Destroyed . | . . . . Combat | -11 -10 -10 -8 -------- Run | Yrd Mat Sub Mat Hostile Shots Fired 244 | . 26 61 157 Missed 53 | . 7 18 28 Hits 191 | . 19 43 129 Melee 2 | . . . 2 Projectile 189 | . 19 43 127 AOE 2 | . . 2 . Critical Strikes 13 | . 1 1 11 Damage Taken 3479 | . 302 978 2199 Core 662 | . 39 73 550 Absorbed by Shields . | . . . . Regen/Repaired (Parts) 242 | . 242 . . Core Remaining (%) 77 | 100 . 55 . Volleys Fired 159 | 19 37 73 30 Largest 3 | 2 2 2 3 Hottest 204 | 100 136 148 204 Shots Fired 304 | 38 68 126 72 Gun 74 | 38 2 . 34 Cannon 221 | . 60 124 37 Launcher 8 | . 5 2 1 Special 1 | . 1 . . Kinetic 29 | . . . 29 Thermal 267 | 38 63 124 42 Explosive 8 | . 5 2 1 Electromagnetic . | . . . . Robot Hit Streak 14 | 6 4 14 10 Robot Miss Streak 5 | 2 5 3 3 Penetration Max . | . . . . Secondary Targets . | . . . . Shots Hit Robots 175 | 23 29 77 46 Core Hits 64 | 6 22 18 18 Critical Kills 3 | . . 3 . Critical Parts Destroyed . | . . . . Critical Strikes 4 | 1 . 3 . Burn 1 | 1 . . . Meltdown 3 | . . 3 . Melee Attacks . | . . . . Impact . | . . . . Slashing . | . . . . Piercing . | . . . . Sneak Attacks . | . . . . Combat Hostiles . | . . . . Follow-up Attacks . | . . . . Damage Inflicted 4148 | 280 914 1761 1193 Guns 781 | 280 . . 501 Cannons 2753 | . 614 1668 471 Explosions 585 | . 271 93 221 Melee . | . . . . Ramming 29 | . 29 . . Kinetic 402 | . . . 402 Thermal 3132 | 280 614 1668 570 Explosive 585 | . 271 93 221 Electromagnetic . | . . . . Impact . | . . . . Slashing . | . . . . Piercing . | . . . . Highest Corruption . | . . . . Average Corruption . | . . . . Corruption Purged . | . . . . Corruption Blocked . | . . . . Overload Shots . | . . . . Overflow Damage 20 | . . 16 4 Projectiles . | . . . . Explosions 20 | . . 16 4 Melee . | . . . . Knockbacks . | . . . . Impact . | . . . . Kinetic . | . . . . Secondary . | . . . . Self-Inflicted Damage 24 | . . . 24 Shots 1 | . . . 1 Rammed 4 | . 4 . . Targets Rammed 5 | . 5 . . Kicked . | . . . . Crushed 1 | . 1 . . Highest Temperature 703 | 310 342 221 703 Average Temperature 144 | 147 114 68 317 Received Heat Transfer 1725 | . 159 225 1341 Effects 14 | 2 . 2 10 Shutdowns 2 | . . . 2 Energy Bleed 2 | 1 . . 1 Interference 2 | . . 2 . Matter Decay 3 | 1 . . 2 Short Circuit 1 | . . . 1 Damage (major) 4 | . . . 4 Siege Activations . | . . . . Martial Activations . | . . . . Shielding Activations . | . . . . Robots Disrupted . | . . . . Combat Hostiles . | . . . . Robots Corrupted . | . . . . Combat Hostiles . | . . . . Parts Fried . | . . . . Impact Corruptions . | . . . . Robots Melted 3 | . . 3 . Combat Hostiles 3 | . . 3 . Parts Melted 6 | 1 1 4 . Heat Transferred 5787 | 888 1110 2849 940 Parts Sabotaged . | . . . . Parts Stolen . | . . . . Parts Stripped . | . . . . Power Chain Reactions . | . . . . Alert | -11 -10 -10 -8 ------- Run | Yrd Mat Sub Mat Maximum Alert Level 1 | . . . 1 Low Security (%) 99 | 100 100 . 99 Level 1 . | . . . . Level 2 . | . . . . Level 3 . | . . . . Level 4 . | . . . . Level 5 . | . . . . High Security . | . . . . Max Security . | . . . . Peak Influence 190 | 10 157 . 190 Initial 3 | . 3 . . Average 53 | 1 47 . 123 Influence Increases 746 | 25 320 60 341 Destroy 0b10 Robot/C 380 | . 180 60 140 Destroy 0b10 Robot/NC 75 | 25 40 . 10 Destroy Leader 68 | . 48 . 20 Successful Hack 24 | . 10 . 14 Disable Machine 15 | . 15 . . Anti-Garrison Action 150 | . . . 150 Destroy Structure 34 | . 27 . 7 Influence Decreases 645 | 20 320 65 240 Entered New Map 5 | . 2 3 . Time Decay 490 | 20 318 42 110 Lost Part 150 | . . 20 130 Squads Dispatched 5 | . 2 . 3 Investigation 1 | . 1 . . Extermination . | . . . . Reinforcement 2 | . 1 . 1 Assault 2 | . . . 2 Garrison . | . . . . Intercept . | . . . . Searches Triggered . | . . . . Construction Impeded . | . . . . Haulers Reinforced . | . . . . Active Scanning Responses . | . . . . Cargo Convoy Interrupts . | . . . . Stealth | -11 -10 -10 -8 --------- Run | Yrd Mat Sub Mat Distress Signals . | . . . . Communications Jammed . | . . . . Distress Signals . | . . . . Times Spotted 45 | . 16 13 16 Peak Tracking Total 7 | . 4 3 7 Tactical Retreats . | . . . . Traps | -11 -10 -10 -8 ------- Run | Yrd Mat Sub Mat Traps Triggered 2 | . 2 . . Indirectly . | . . . . Trap Hack Attempts . | . . . . Triggered . | . . . . Disarmed . | . . . . Reprogrammed . | . . . . Reused . | . . . . Traps Extracted . | . . . . Installed 1 | . . 1 . Triggered . | . . . . Most Traps Carried 1 | . . 1 . Machines | -11 -10 -10 -8 ---------- Run | Yrd Mat Sub Mat Machines Disabled 3 | . 1 1 1 Max in Single Turn 1 | . 1 1 1 Garrison Access 1 | . . . 1 Machines Repaired . | . . . . Machines Dismantled . | . . . . Machines Sabotaged . | . . . . Overloaded Fab Kills . | . . . . Hacking | -11 -10 -10 -8 --------- Run | Yrd Mat Sub Mat Machines Accessed 11 | . 7 1 3 Terminals 7 | . 5 . 2 Fabricators . | . . . . Repair Stations 1 | . 1 . . Recycling Units 1 | . 1 . . Scanalyzers . | . . . . Garrison Access 1 | . . . 1 Total Hacks 31 | . 21 1 9 Successful 16 | . 13 1 2 Failed 15 | . 8 . 7 Catastrophic 1 | . 1 . . Database Lockouts . | . . . . Manual 13 | . 11 . 2 Terminals 14 | . 9 . 5 Fabricators . | . . . . Repair Stations 8 | . 8 . . Recycling Units 4 | . 4 . . Scanalyzers . | . . . . Garrison Access 4 | . . . 4 Terminal Hacks 5 | . 2 1 2 Robot Analysis 2 | . 2 . . Level Access Points 1 | . . . 1 Branch Access Points 1 | . . . 1 Proto ID Catalog 1 | . . 1 . Fabricator Hacks . | . . . . Repair Station Hacks 8 | . 8 . . Scan Component 4 | . 4 . . Repair 4 | . 4 . . Recycling Unit Hacks 1 | . 1 . . Retrieve Components 1 | . 1 . . Scanalyzer . | . . . . Garrison Access Hacks . | . . . . Unauthorized Hacks 2 | . 2 . . Terminals 2 | . 2 . . Skim 2 | . 2 . . Fabricators . | . . . . Repair Stations . | . . . . Recycling Units . | . . . . Scanalyzers . | . . . . Garrison Access . | . . . . Data Cores Recovered 1 | . 1 . . Used 1 | . 1 . . Hacking Detections 10 | . 7 . 3 Full Trace Events 1 | . 1 . . Feedback Events . | . . . . Feedback Blocked . | . . . . Robot Schematics Acquired . | . . . . Robots Built . | . . . . Authchips . | . . . . Time . | . . . . Total Robot Build Rating . | . . . . Part Schematics Acquired . | . . . . Parts Built . | . . . . Authchips . | . . . . Time . | . . . . Total Part Build Rating . | . . . . Part Studies Acquired . | . . . . Parts Repaired 4 | . 4 . . Time 110 | . 110 . . Parts Recycled . | . . . . Recycled Matter . | . . . . Retrieved Matter . | . . . . Retrieved Components 1 | . 1 . . Parts Scanalyzed . | . . . . Part Schematics Acquired . | . . . . Parts Damaged . | . . . . Bothacking | -11 -10 -10 -8 ------------ Run | Yrd Mat Sub Mat Used RIF Installer . | . . . . Robots Hacked . | . . . . Non-combat . | . . . . Combat . | . . . . Robot Hacks Applied . | . . . . Relay Couplers Released . | . . . . Fabnet Peak Effective % . | . . . . Robots Rewired . | . . . . Allies Hacked . | . . . . Hacks Repelled . | . . . . Allies | -11 -10 -10 -8 -------- Run | Yrd Mat Sub Mat Total Allies . | . . . . Largest Group . | . . . . Highest-Rated Group . | . . . . Highest-Rated Ally . | . . . . Total Orders . | . . . . Ally Attacks . | . . . . Total Damage . | . . . . Kills . | . . . . Allies Corrupted . | . . . . Allies Melted . | . . . . Intel | -11 -10 -10 -8 ------- Run | Yrd Mat Sub Mat Active Infowar (turns) 3692 | 48 1649 1884 111 Seismic 3692 | 48 1649 1884 111 Robot Analysis Total 2 | . 2 . . Derelict Logs Recovered . | . . . . Drone Launches . | . . . . Drone Recoveries . | . . . . Exploration | -11 -10 -10 -8 ------------- Run | Yrd Mat Sub Mat Turns Passed 4341 | 173 1649 2247 272 Spaces Moved 2086 | 66 802 1157 61 Core 8 | 8 . . . Treads 1990 | 58 802 1071 59 Legs 2 | . . . 2 Wheels 86 | . . 86 . Hover . | . . . . Flight . | . . . . Fastest Speed 50 | 50 160 120 240 Average Speed 163 | 146 160 163 240 Slowest Speed 260 | 160 160 240 260 Overloaded Moves . | . . . . Propulsion Burnouts . | . . . . Robots Hopped . | . . . . Potential Cave-ins . | . . . . Cave-ins Triggered . | . . . . Exploration Rate (%) 40 | 5 94 52 11 Regions Visited 3 Branch Regions 1 Pre-discovered Areas . | . . . . Known Exits Taken . | . . . . Unknown Exits Taken 3 | 1 1 1 . Scrap Searched 1 | . . 1 . Spaces Dug 13 | . 13 . . Terrain Destroyed 55 | . 35 14 6 Melee . | . . . . Projectile 2 | . 1 1 . AOE 53 | . 34 13 6 Terrain Rammed . | . . . . Walls Destroyed . | . . . . Machines Disabled . | . . . . Actions | -11 -10 -10 -8 --------- Run | Yrd Mat Sub Mat Total 2710 | 102 1093 1388 127 Wait 344 | 3 208 123 10 Move 2083 | 65 801 1156 61 Hop . | . . . . Pick Up 33 | 7 16 9 1 Fast Attach 16 | 6 5 2 3 Attach 20 | 1 1 6 12 Detach 2 | . 2 . . Swap 26 | . 9 10 7 Drop 21 | 1 9 8 3 Fire 159 | 19 37 73 30 Melee . | . . . . Ram . | . . . . Kick . | . . . . Crush 5 | . 5 . . Escape Stasis . | . . . . Rewire . | . . . . Trap 1 | . . 1 . Miscellaneous . | . . . . Route ------- -11/Scrapyard -10/Materials (discovered 5 exits: [*Mat x3] / [*Min] / *Sub) -10/Subcaves (discovered 2 exits: *Mat / [*Rec]) -8/Materials (discovered 3 exits: Fac x3) History --------- Turn | Location | Event 9 | -11/Scrapyard | Discovered new exit (range 15) 174 | -11/Scrapyard | Entered Materials 318 | -10/Materials | Build established: Mutant 485 | -10/Materials | Discovered new exit (range 9) 578 | -10/Materials | Discovered new exit (range 13) 639 | -10/Materials | Discovered new exit (range 14) 1197 | -10/Materials | Discovered new exit (range 14) 1244 | -10/Materials | Repaired Lgt. Treads 1271 | -10/Materials | Repaired Lgt. Treads 1299 | -10/Materials | Repaired Lgt. Treads 1332 | -10/Materials | Repaired Particle Cannon 1773 | -10/Materials | Discovered new exit (range 14) 1823 | -10/Materials | Entered Subcaves 1824 | -10/Subcaves | Approached by a straggling Scientist 1863 | -10/Subcaves | Discovered new exit (range 16) 1909 | -10/Subcaves | Shifting Twisted Machinery released Mak. Flight Unit 2262 | -10/Subcaves | Shifting Twisted Machinery released Shrapnel Trap 2271 | -10/Subcaves | Shifting Twisted Machinery released Piercing Trap 2393 | -10/Subcaves | A swath of the cavern ceiling suddenly collapsed 2499 | -10/Subcaves | A swath of the cavern ceiling suddenly collapsed 3512 | -10/Subcaves | Discovered new exit (range 11) 3625 | -10/Subcaves | Visited 4L-MR0's lab 3767 | -10/Subcaves | Found Power Bank 4070 | -10/Subcaves | Entered Materials 4070 | -8/Materials | Evolved 4 slots: Power x1, Propulsion x1, Utility x1, Weapon x1 4233 | -8/Materials | Identified exit to Factory 4308 | -8/Materials | Core integrity fell below 50% 4327 | -8/Materials | Core integrity fell below 20% 4342 | -8/Materials | Destroyed by G-47 Trooper with Particle Gun Last Messages --------------- 04327_ Imp. Aluminum Leg destroyed. 04327_ Acquired Imp. Ion Engine. 04328_ M-28 Smith repairs G-50 Soldier. 04329_ Critical hit (Burn: +37). 04329_ G-47 Trooper destroyed. 04335_ Overheating: Imp. Ion Engine damaged (-11). 04335_ Overheating: Adv. Beam Cannon damaged (-2). 04335_ Overheating: Lrg. Storage Unit damaged (-133). 04336_ Power failure, Imp. Ion Engine shutdown. 04336_ Overheating: Matter decay (-9). 04336_ Adv. Beam Cannon destroyed. 04337_ Imp. Ion Engine destroyed. 04339_ Overheating: Energy bleed (-4). 04340_ Overheating: Reactive Plating damaged (-46). 04341_ Critical hit (Burn: +37). 04341_ Reactive Plating destroyed. Map ----- +----------------------------------------------------+ | ?????????????????????????????????????????????????? | | ?????????????????????????????????????????????????? | | ?????????????????????????????????????????????????? | | ?????????????????????????????????????????????????? | | ?????????????????????????????????????????????????? | | ?????????????????????????????????????????????????? | | ?????????????????????????????????????????????????? | | ?????????????????????????????????????????????????? | | ?????????????????????????????????????????????????? | | ?????????????????????????????????????????????????? | | ?????????????????????????????????????????????????? | | ?????????????????????????????????????????????????? | | ?????????????????????????????????????????????????? | | ?????????????????????????????????????????????????? | | ?????????????????????????????????????????????????? | | ???????????????????????????????????????? ????????? | | ??????????????????????????????????????? T???????? | | ???????????????????????????????#??????? "???????? | | ?????????????????????????????### ?????? "???????? | | ???????????????????????????#!! ??"" "???????? | | ???????????????????????????#!! """ #???????? | | ??????????????????##########[[ """ #???????? | | ??????????????????# T" [##[[ "" #??###??? | | ??????????????????# % #?] """ #?? ???? | | ??????????????????# *! #?? "" #?? #???? | | ??????????????????# =%!@ ##### """ ### #???? | | ??????????????????# !g[=gg " #???? | | ??????????????????# [!m% #???? | | ??????????????????# ! ! +???? | | ??????????????????# # #### ### #???? | | ??????????????????# ## #??????# * #???? | | ??????????????????# ] ## #??????# #???? | | ??????????????????# ## #??????# ! #???? | | ??????????????????##########+####+### +???? | | ??????????????????????????# # "! #???? | | ??????????????????????????# """ """ # "G%% #???? | | ??????????????????????????# """ """ # "" #???? | | ??????????????????????????# """ """ + #???? | | ??????????????????????????# """ """ # !#???? | | ??????????????????????????# """ """ # ] ##+####### | | ??????????????????????????# # # | | ??????????????????????????# "T" ##### | | ??????